fUSD/lending_fUSD_20250112
["ID","MTS","AMOUNT","RATE_DAILY","PERIOD"]
[348672767,1736706645468,-500.0,9.817e-05,2]
[348672768,1736706645478,-500.0,9.817e-05,2]
[348672769,1736706645487,-500.0,9.817e-05,2]
[348672770,1736706645496,-500.0,9.817e-05,2]
[348672771,1736706645506,-500.0,9.817e-05,2]
[348672772,1736706645515,-500.0,9.817e-05,2]
[348672773,1736706645525,-2003.73,9.817e-05,2]
[348672774,1736706645534,-500.0,9.817e-05,2]
[348672775,1736706645544,-500.0,9.817e-05,2]
[348672776,1736706645553,-500.0,9.817e-05,2]
[348672777,1736706645563,-500.0,9.817e-05,2]
[348672778,1736706645572,-500.0,9.817e-05,2]
[348672779,1736706645581,-500.0,9.817e-05,2]
[348672780,1736706645591,-500.0,9.817e-05,2]
[348672781,1736706645601,-500.0,9.817e-05,2]
[348672782,1736706645611,-500.0,9.817e-05,2]
[348672783,1736706645620,-500.0,9.817e-05,2]
[348672784,1736706645631,-500.0,9.817e-05,2]
[348672785,1736706645641,-500.0,9.817e-05,2]
[348672786,1736706645650,-500.0,9.817e-05,2]
[348672787,1736706645660,-500.0,9.817e-05,2]
[348672788,1736706645670,-500.0,9.817e-05,2]
[348672789,1736706645680,-500.0,9.817e-05,2]
[348672790,1736706645689,-500.0,9.817e-05,2]
[348672791,1736706645699,-509.55,9.817e-05,2]
[348672792,1736706645708,-500.0,9.817e-05,2]
[348672793,1736706645718,-500.0,9.817e-05,2]
[348672794,1736706645727,-500.0,9.817e-05,2]
[348672795,1736706645737,-500.0,9.817e-05,2]
[348672796,1736706645747,-500.0,9.817e-05,2]
[348672797,1736706645756,-500.0,9.817e-05,2]
[348672798,1736706645766,-590.92,9.817e-05,2]
[348672799,1736706645776,-500.0,9.817e-05,2]
[348672800,1736706645786,-500.0,9.817e-05,2]
[348672801,1736706645795,-500.0,9.817e-05,2]
[348672802,1736706645805,-500.0,9.817e-05,2]
[348672803,1736706645814,-500.0,9.817e-05,2]
[348672804,1736706645824,-500.0,9.817e-05,2]
[348672805,1736706645833,-500.0,9.817e-05,2]
[348672806,1736706645843,-500.0,9.817e-05,2]
[348672807,1736706645853,-726.12,9.817e-05,2]
[348672808,1736706645862,-500.0,9.817e-05,2]
[348672809,1736706645874,-557.83,9.817e-05,2]
[348672810,1736706645884,-500.0,9.817e-05,2]
[348672811,1736706645894,-520.3,9.817e-05,2]
[348672812,1736706645904,-4112.72,9.817e-05,2]
[348672813,1736706645913,-2771.07,9.817e-05,2]
[348672814,1736706645923,-500.0,9.817e-05,2]
[348672815,1736706645933,-500.0,9.817e-05,2]
[348672816,1736706645942,-575.41,9.817e-05,2]
[348672817,1736706645952,-500.0,9.817e-05,2]
[348672818,1736706645961,-529.26,9.817e-05,2]
[348672819,1736706645971,-500.0,9.817e-05,2]
[348672820,1736706645980,-500.0,9.817e-05,2]
[348672821,1736706645989,-500.0,9.817e-05,2]
[348672822,1736706645999,-500.0,9.817e-05,2]
[348672823,1736706646008,-500.0,9.817e-05,2]
[348672824,1736706646018,-1292.15,9.817e-05,2]
[348672825,1736706646027,-1891.97,9.817e-05,2]
[348672826,1736706646038,-500.0,9.817e-05,2]
[348672828,1736706646048,-500.0,9.817e-05,2]
[348672830,1736706646057,-343.95670196,9.817e-05,2]
[348672832,1736706646067,-545.13,9.817e-05,2]
[348672834,1736706646076,-500.0,9.817e-05,2]
[348672836,1736706646086,-613.58,9.817e-05,2]
[348672838,1736706646096,-3167.82,9.817e-05,2]
[348672841,1736706646105,-500.0,9.817e-05,2]
[348672843,1736706646115,-620.3,9.817e-05,2]
[348672847,1736706646126,-707.05,9.817e-05,2]
[348672851,1736706646136,-500.0,9.817e-05,2]
[348672853,1736706646145,-609.55,9.817e-05,2]
[348672855,1736706646154,-500.0,9.817e-05,2]
[348672856,1736706646164,-542.08,9.817e-05,2]
[348672858,1736706646173,-500.0,9.817e-05,2]
[348672860,1736706646183,-500.0,9.817e-05,2]
[348672862,1736706646193,-559.59,9.817e-05,2]
[348672864,1736706646206,-1131.73,9.817e-05,2]
[348672866,1736706646215,-1461.09,9.817e-05,2]
[348672867,1736706646224,-526.1,9.817e-05,2]
[348672868,1736706646235,-804.75,9.817e-05,2]
[348672869,1736706646244,-500.0,9.817e-05,2]
[348672870,1736706646253,-659.53,9.817e-05,2]
[348672871,1736706646263,-500.0,9.817e-05,2]
[348672873,1736706646272,-500.0,9.817e-05,2]
[348672874,1736706646281,-500.0,9.817e-05,2]
[348672875,1736706646291,-2644.63,9.817e-05,2]
[348672876,1736706646300,-855.12,9.817e-05,2]
[348672877,1736706646309,-522.63,9.817e-05,2]
[348672878,1736706646321,-618.79,9.817e-05,2]
[348672879,1736706646330,-500.0,9.817e-05,2]
[348672880,1736706646340,-500.0,9.817e-05,2]
[348672881,1736706646349,-500.0,9.817e-05,2]
[348672882,1736706646358,-500.0,9.817e-05,2]
[348672883,1736706646368,-2539.32,9.817e-05,2]
[348672884,1736706646379,-500.0,9.817e-05,2]
[348672885,1736706646388,-984.34,9.817e-05,2]
[348672886,1736706646397,-500.0,9.817e-05,2]
[348672887,1736706646407,-500.0,9.817e-05,2]
[348672888,1736706646417,-500.0,9.817e-05,2]
[348672889,1736706646427,-500.0,9.817e-05,2]
[348672890,1736706646437,-1360.47,9.817e-05,2]
[348672891,1736706646446,-702.4,9.817e-05,2]
[348672892,1736706646455,-1267.62,9.818e-05,2]
[348672893,1736706646464,-857.63,9.818e-05,2]
[348672894,1736706646473,-2942.78,9.818e-05,2]
[348672895,1736706646483,-500.0,9.818e-05,2]
[348672896,1736706646492,-500.0,9.818e-05,2]
[348672897,1736706646502,-2893.37,9.818e-05,2]
[348672898,1736706646512,-500.0,9.818e-05,2]
[348672899,1736706646521,-500.0,9.818e-05,2]
[348672900,1736706646530,-500.0,9.818e-05,2]
[348672901,1736706646539,-500.0,9.818e-05,2]
[348672902,1736706646548,-500.0,9.818e-05,2]
[348672903,1736706646557,-500.0,9.818e-05,2]
[348672904,1736706646566,-1306.29,9.818e-05,2]
[348672905,1736706646574,-500.0,9.818e-05,2]
[348672906,1736706646585,-500.0,9.818e-05,2]
[348672907,1736706646594,-500.0,9.818e-05,2]
[348672908,1736706646604,-500.0,9.818e-05,2]
[348672909,1736706646613,-500.0,9.818e-05,2]
[348672910,1736706646622,-500.0,9.818e-05,2]
[348672911,1736706646633,-500.0,9.818e-05,2]
[348672912,1736706646642,-500.0,9.818e-05,2]
[348672913,1736706646651,-525.29,9.818e-05,2]
[348672914,1736706646660,-500.0,9.818e-05,2]
[348672915,1736706646669,-623.63,9.818e-05,2]
[348672916,1736706646679,-666.13,9.818e-05,2]
[348672917,1736706646688,-500.0,9.818e-05,2]
[348672918,1736706646697,-500.0,9.818e-05,2]
[348672919,1736706646706,-835.62,9.818e-05,2]
[348672920,1736706646716,-835.62,9.818e-05,2]
[348672921,1736706646725,-500.0,9.818e-05,2]
[348672922,1736706646736,-799.78,9.818e-05,2]
[348672923,1736706646745,-500.0,9.818e-05,2]
[348672924,1736706646754,-500.0,9.818e-05,2]
[348672925,1736706646764,-500.0,9.818e-05,2]
[348672926,1736706646773,-582.41,9.818e-05,2]
[348672927,1736706646784,-596.01,9.818e-05,2]
[348672928,1736706646793,-596.01,9.818e-05,2]
[348672929,1736706646803,-500.0,9.818e-05,2]
[348672930,1736706646812,-500.0,9.818e-05,2]
[348672931,1736706646822,-1000.0,9.818e-05,2]
[348672932,1736706646831,-976.13,9.818e-05,2]
[348672933,1736706646840,-500.0,9.818e-05,2]
[348672934,1736706646849,-500.0,9.818e-05,2]
[348672935,1736706646859,-987.68,9.818e-05,2]
[348672936,1736706646868,-500.0,9.818e-05,2]
[348672937,1736706646879,-500.0,9.818e-05,2]
[348672938,1736706646888,-500.0,9.818e-05,2]
[348672939,1736706646897,-500.0,9.818e-05,2]
[348672940,1736706646907,-1140.43,9.818e-05,2]
[348672941,1736706646916,-1788.15,9.818e-05,2]
[348672942,1736706646926,-500.0,9.818e-05,2]
[348672943,1736706646936,-500.0,9.818e-05,2]
[348672944,1736706646946,-500.0,9.818e-05,2]
[348672945,1736706646955,-500.0,9.818e-05,2]
[348672946,1736706646964,-500.0,9.818e-05,2]
[348672947,1736706646974,-908.13,9.818e-05,2]
[348672948,1736706646984,-285.12548173,9.818e-05,2]
[348672949,1736706646993,-1719.51,9.818e-05,2]
[348672950,1736706647003,-599.77,9.818e-05,2]
[348672951,1736706647012,-500.0,9.818e-05,2]
[348672952,1736706647023,-544.67,9.818e-05,2]
[348672953,1736706647032,-627.52,9.818e-05,2]
[348672954,1736706647042,-1239.08,9.818e-05,2]
[348672955,1736706647051,-500.0,9.818e-05,2]
[348672956,1736706647061,-500.0,9.818e-05,2]
[348672957,1736706647071,-500.0,9.818e-05,2]
[348672958,1736706647080,-1781.34,9.818e-05,2]
[348672959,1736706647091,-500.0,9.818e-05,2]
[348672960,1736706647102,-769.44,9.818e-05,2]
[348672961,1736706647111,-673.63,9.818e-05,2]
[348672962,1736706647120,-1009.99,9.818e-05,2]
[348672963,1736706647131,-10829.00111555,9.828e-05,2]
[348672964,1736706647140,-600.0,9.9e-05,3]
[348672965,1736706647149,-159.53148049,9.903e-05,2]
[348672966,1736706647158,-159.53148049,9.928e-05,2]
[348672967,1736706647167,-159.53148049,9.952e-05,2]
[348672968,1736706647176,-500.0,9.973e-05,2]
[348672969,1736706647185,-159.53148049,9.976e-05,2]
[348672970,1736706647198,-163.09,0.0001,2]
[348672971,1736706647207,-500.0,0.0001,2]
[348672972,1736706647217,-521097.64625725,0.0001,2]
[348672973,1736706647260,-2321.4108519,0.0001,2]
[348672974,1736706647797,-98.02145705,9.542e-05,2]
[348672975,1736706647811,-345.93084422,9.542e-05,2]
[348672976,1736706694422,1236.0,0.00023,120]
[348672978,1736706795159,1236.53501215,0.0001705,60]
[348672980,1736706895726,256.84,8.775e-05,2]
[348672981,1736707002098,445.12,8.806e-05,2]
[348672982,1736707075131,1511.26,8.772e-05,2]
[348672983,1736707127434,163.29,7.002e-05,2]
[348672984,1736707128314,295.51,8.752e-05,2]
[348672985,1736707128518,295.51,8.755e-05,2]
[348672986,1736707129454,295.51,8.757e-05,2]
[348672987,1736707129547,295.51,8.759e-05,2]
[348672988,1736707129624,295.51,8.762e-05,2]
[348672989,1736707129701,295.51,8.764e-05,2]
[348672990,1736707129787,295.51,8.766e-05,2]
[348672991,1736707129992,295.51,8.768e-05,2]
[348672992,1736707130394,295.51,8.771e-05,2]
[348672993,1736707130599,295.51,8.773e-05,2]
[348672994,1736707130789,295.51,8.775e-05,2]
[348672995,1736707131017,295.51,8.778e-05,2]
[348672996,1736707131216,295.51,8.78e-05,2]
[348672997,1736707131432,295.51,8.782e-05,2]
[348672998,1736707131623,295.51,8.785e-05,2]
[348672999,1736707131823,295.51,8.787e-05,2]
[348673000,1736707132051,108.55,8.789e-05,2]
[348673001,1736707132073,186.96,8.789e-05,2]
[348673002,1736707132248,295.51,8.791e-05,2]
[348673003,1736707132449,295.51,8.794e-05,2]
[348673004,1736707132652,295.51,8.796e-05,2]
[348673005,1736707212686,10000.0,8.734e-05,2]
[348673006,1736707212712,9906.56,8.734e-05,2]
[348673007,1736707220303,1000.0,8.727e-05,2]
[348673008,1736707284405,770.48,8.219e-05,2]
[348673009,1736707458998,250.0,8.749e-05,2]
[348673010,1736707503644,484.28374164,0.00023,120]
[348673011,1736707503709,3122.6070592,0.00023,120]
[348673012,1736707533745,250.0,8.849e-05,2]
[348673026,1736707831627,-1300.0,9.2e-05,3]
[348673027,1736707831636,-150.0,9.233e-05,2]
[348673028,1736707831646,-150.0,9.268e-05,2]
[348673029,1736707831658,-300.0,9.268e-05,2]
[348673030,1736707831667,-142.9495505,9.269e-05,2]
[348673031,1736707831679,-538.0204495,9.269e-05,2]
[348673032,1736707831689,-500.0,9.269e-05,2]
[348673033,1736707831699,-766.46,9.269e-05,2]
[348673034,1736707831709,-856.6,9.269e-05,2]
[348673035,1736707831718,-870.78,9.269e-05,2]
[348673036,1736707831729,-698.49,9.269e-05,2]
[348673037,1736707831739,-1305.13,9.269e-05,2]
[348673038,1736707831750,-1480.46,9.269e-05,2]
[348673039,1736707831759,-1124.33,9.269e-05,2]
[348673040,1736707831769,-500.0,9.269e-05,2]
[348673041,1736707831779,-969.73857306,9.269e-05,2]
[348673042,1736707831791,-3367.80142694,9.269e-05,2]
[348673043,1736707831801,-699.44,9.269e-05,2]
[348673044,1736707831810,-556.99,9.269e-05,2]
[348673045,1736707831821,-598.57,9.269e-05,2]
[348673046,1736707831832,-1640.98,9.269e-05,2]
[348673047,1736707831843,-627.4,9.269e-05,2]
[348673048,1736707831853,-991.83,9.269e-05,2]
[348673049,1736707831863,-1266.94,9.269e-05,2]
[348673050,1736707831874,-638.66,9.269e-05,2]
[348673051,1736707831883,-1000.0,9.269e-05,2]
[348673052,1736707831892,-1057.95,9.269e-05,2]
[348673053,1736707831901,-500.0,9.269e-05,2]
[348673054,1736707831911,-2004.7,9.269e-05,2]
[348673055,1736707831920,-1727.2,9.269e-05,2]
[348673056,1736707831930,-12336.34140962,9.269e-05,2]
[348673057,1736707831939,-892.82,9.27e-05,2]
[348673058,1736707831949,-856.57,9.27e-05,2]
[348673059,1736707831959,-500.0,9.27e-05,2]
[348673060,1736707831968,-2700.0,9.3e-05,3]
[348673061,1736707831977,-4000.0,9.4e-05,3]
[348673062,1736707831987,-13819.62282472,9.428e-05,2]
[348673063,1736707831999,-81706.37717528,9.428e-05,2]
[348673064,1736707832008,-29463.6543,9.442e-05,2]
[348673065,1736707832017,-1994.5086,9.442e-05,2]
[348673066,1736707832027,-150.99,9.5e-05,2]
[348673067,1736707832036,-3684.4721327,9.5e-05,3]
[348673068,1736707832070,-1715.5278673,9.5e-05,3]
[348673069,1736707832080,-658.63,9.54e-05,2]
[348673070,1736707832089,-500.0,9.54e-05,2]
[348673071,1736707832098,-500.0,9.54e-05,2]
[348673073,1736707832108,-500.0,9.54e-05,2]
[348673075,1736707832117,-500.0,9.54e-05,2]
[348673077,1736707832126,-500.0,9.541e-05,2]
[348673079,1736707832135,-456.12754759,9.541e-05,2]
[348673081,1736707832146,-134.79015114,9.541e-05,2]
[348673084,1736707832156,-500.0,9.541e-05,2]
[348673085,1736707832165,-500.0,9.541e-05,2]
[348673087,1736707832174,-500.0,9.541e-05,2]
[348673088,1736707832183,-500.0,9.541e-05,2]
[348673090,1736707832193,-500.0,9.541e-05,2]
[348673092,1736707832203,-500.0,9.541e-05,2]
[348673094,1736707832213,-500.0,9.541e-05,2]
[348673096,1736707832222,-500.0,9.541e-05,2]
[348673098,1736707832231,-500.0,9.541e-05,2]
[348673100,1736707832241,-500.0,9.541e-05,2]
[348673102,1736707832251,-500.0,9.541e-05,2]
[348673104,1736707832260,-500.0,9.541e-05,2]
[348673106,1736707832270,-500.0,9.541e-05,2]
[348673108,1736707832279,-500.0,9.541e-05,2]
[348673109,1736707832288,-500.0,9.541e-05,2]
[348673111,1736707832297,-500.0,9.541e-05,2]
[348673113,1736707832307,-500.0,9.541e-05,2]
[348673115,1736707832316,-502.96851433,9.541e-05,2]
[348673117,1736707832325,-500.0,9.541e-05,2]
[348673119,1736707832334,-500.0,9.541e-05,2]
[348673121,1736707832344,-500.0,9.541e-05,2]
[348673123,1736707832353,-500.0,9.541e-05,2]
[348673125,1736707832363,-500.0,9.541e-05,2]
[348673127,1736707832372,-500.0,9.541e-05,2]
[348673129,1736707832382,-500.0,9.541e-05,2]
[348673131,1736707832391,-501.10502491,9.541e-05,2]
[348673133,1736707832400,-500.0,9.541e-05,2]
[348673135,1736707832409,-500.0,9.541e-05,2]
[348673137,1736707832418,-500.0,9.541e-05,2]
[348673138,1736707832428,-500.0,9.541e-05,2]
[348673140,1736707832437,-500.0,9.541e-05,2]
[348673142,1736707832446,-500.0,9.541e-05,2]
[348673144,1736707832457,-757.74,9.541e-05,2]
[348673146,1736707832466,-500.0,9.541e-05,2]
[348673148,1736707832476,-500.0,9.541e-05,2]
[348673150,1736707832486,-500.0,9.541e-05,2]
[348673152,1736707832495,-500.0,9.541e-05,2]
[348673154,1736707832505,-1398.15,9.541e-05,2]
[348673156,1736707832514,-500.0,9.541e-05,2]
[348673158,1736707832523,-504.19334368,9.541e-05,2]
[348673160,1736707832533,-503.42700659,9.541e-05,2]
[348673162,1736707832542,-500.0,9.541e-05,2]
[348673164,1736707832552,-504.28716996,9.541e-05,2]
[348673166,1736707832562,-500.0,9.541e-05,2]
[348673168,1736707832571,-4266.25,9.541e-05,2]
[348673170,1736707832580,-500.0,9.541e-05,2]
[348673172,1736707832590,-502.46706299,9.541e-05,2]
[348673174,1736707832599,-500.0,9.541e-05,2]
[348673176,1736707832609,-500.0,9.541e-05,2]
[348673178,1736707832618,-500.0,9.541e-05,2]
[348673180,1736707832628,-500.0,9.541e-05,2]
[348673182,1736707832637,-500.0,9.541e-05,2]
[348673184,1736707832647,-500.0,9.541e-05,2]
[348673186,1736707832659,-500.0,9.541e-05,2]
[348673188,1736707832669,-754.47,9.541e-05,2]
[348673190,1736707832678,-500.0,9.541e-05,2]
[348673192,1736707832687,-500.0,9.541e-05,2]
[348673194,1736707832696,-500.0,9.541e-05,2]
[348673196,1736707832711,-500.0,9.541e-05,2]
[348673197,1736707832720,-500.0,9.541e-05,2]
[348673199,1736707832730,-500.0,9.541e-05,2]
[348673202,1736707832740,-500.0,9.541e-05,2]
[348673204,1736707832751,-500.0,9.541e-05,2]
[348673206,1736707832761,-500.0,9.541e-05,2]
[348673208,1736707832770,-1353.42,9.541e-05,2]
[348673210,1736707832781,-502.50354954,9.541e-05,2]
[348673212,1736707832790,-500.0,9.541e-05,2]
[348673214,1736707832800,-500.0,9.541e-05,2]
[348673216,1736707832810,-504.38567085,9.541e-05,2]
[348673218,1736707832820,-503.34519273,9.541e-05,2]
[348673220,1736707832829,-502.22329701,9.541e-05,2]
[348673222,1736707832838,-504.16928516,9.541e-05,2]
[348673224,1736707832848,-500.0,9.541e-05,2]
[348673226,1736707832857,-500.0,9.541e-05,2]
[348673228,1736707832867,-500.0,9.541e-05,2]
[348673229,1736707832876,-500.0,9.541e-05,2]
[348673230,1736707832886,-500.0,9.541e-05,2]
[348673232,1736707832895,-2046.81,9.541e-05,2]
[348673234,1736707832905,-500.0,9.541e-05,2]
[348673236,1736707832914,-500.0,9.541e-05,2]
[348673238,1736707832924,-500.0,9.541e-05,2]
[348673240,1736707832934,-500.0,9.541e-05,2]
[348673242,1736707832943,-595.22498261,9.541e-05,2]
[348673244,1736707832953,-733.46,9.541e-05,2]
[348673246,1736707832963,-671.41,9.541e-05,2]
[348673248,1736707832973,-566.01,9.541e-05,2]
[348673250,1736707832983,-501.8622855,9.541e-05,2]
[348673252,1736707832992,-500.0,9.541e-05,2]
[348673254,1736707833002,-1668.88,9.541e-05,2]
[348673256,1736707833012,-1179.89,9.541e-05,2]
[348673258,1736707833022,-500.0,9.541e-05,2]
[348673260,1736707833032,-500.0,9.541e-05,2]
[348673262,1736707833042,-500.0,9.541e-05,2]
[348673264,1736707833052,-1577.16,9.541e-05,2]
[348673266,1736707833062,-850.73,9.541e-05,2]
[348673268,1736707833071,-500.0,9.541e-05,2]
[348673270,1736707833083,-1096.65,9.541e-05,2]
[348673272,1736707833093,-500.0,9.541e-05,2]
[348673274,1736707833103,-500.0,9.541e-05,2]
[348673276,1736707833114,-665.91,9.541e-05,2]
[348673278,1736707833124,-500.0,9.541e-05,2]
[348673280,1736707833135,-930.7,9.541e-05,2]
[348673282,1736707833145,-500.0,9.541e-05,2]
[348673284,1736707833155,-1632.98,9.541e-05,2]
[348673286,1736707833165,-500.0,9.541e-05,2]
[348673288,1736707833175,-621.90050864,9.541e-05,2]
[348673290,1736707833185,-500.0,9.541e-05,2]
[348673292,1736707833195,-521.95336906,9.541e-05,2]
[348673294,1736707833205,-500.0,9.541e-05,2]
[348673296,1736707833215,-500.0,9.541e-05,2]
[348673298,1736707833225,-507.46216314,9.541e-05,2]
[348673300,1736707833235,-500.0,9.541e-05,2]
[348673302,1736707833245,-500.0,9.541e-05,2]
[348673304,1736707833254,-500.0,9.541e-05,2]
[348673306,1736707833264,-500.0,9.541e-05,2]
[348673308,1736707833274,-799.51,9.541e-05,2]
[348673309,1736707833284,-500.0,9.541e-05,2]
[348673311,1736707833294,-500.0,9.541e-05,2]
[348673313,1736707833304,-500.0,9.541e-05,2]
[348673315,1736707833313,-621.68,9.541e-05,2]
[348673317,1736707833323,-500.0,9.541e-05,2]
[348673319,1736707833333,-500.0,9.541e-05,2]
[348673321,1736707833344,-500.0,9.541e-05,2]
[348673323,1736707833353,-500.0,9.541e-05,2]
[348673325,1736707833363,-453.36897563,9.541e-05,2]
[348673327,1736707833372,-500.0,9.541e-05,2]
[348673329,1736707833382,-500.0,9.541e-05,2]
[348673331,1736707833391,-501.03422384,9.541e-05,2]
[348673333,1736707833401,-500.0,9.541e-05,2]
[348673335,1736707833411,-500.0,9.541e-05,2]
[348673337,1736707833420,-923.9,9.541e-05,2]
[348673339,1736707833429,-500.0,9.541e-05,2]
[348673341,1736707833439,-500.0,9.541e-05,2]
[348673343,1736707833448,-2763.86,9.541e-05,2]
[348673345,1736707833459,-500.0,9.541e-05,2]
[348673347,1736707833469,-500.0,9.541e-05,2]
[348673349,1736707833479,-500.0,9.541e-05,2]
[348673351,1736707833489,-500.0,9.541e-05,2]
[348673352,1736707833499,-1288.28,9.541e-05,2]
[348673353,1736707833509,-500.0,9.542e-05,2]
[348673354,1736707833519,-500.0,9.542e-05,2]
[348673355,1736707833530,-500.0,9.542e-05,2]
[348673356,1736707833539,-500.0,9.542e-05,2]
[348673357,1736707833549,-500.0,9.542e-05,2]
[348673358,1736707833559,-500.0,9.542e-05,2]
[348673359,1736707833568,-508.98442528,9.542e-05,2]
[348673360,1736707833578,-521.68533043,9.542e-05,2]
[348673361,1736707833588,-500.0,9.542e-05,2]
[348673362,1736707833599,-500.0,9.542e-05,2]
[348673363,1736707833608,-591.89790047,9.542e-05,2]
[348673364,1736707833619,-500.0,9.542e-05,2]
[348673365,1736707833628,-500.0,9.542e-05,2]
[348673366,1736707833638,-500.0,9.542e-05,2]
[348673367,1736707833648,-500.0,9.542e-05,2]
[348673368,1736707833661,-500.0,9.542e-05,2]
[348673369,1736707833671,-668.96,9.542e-05,2]
[348673370,1736707833681,-500.0,9.542e-05,2]
[348673371,1736707833690,-500.0,9.542e-05,2]
[348673372,1736707833701,-508.15212782,9.542e-05,2]
[348673373,1736707833711,-500.0,9.542e-05,2]
[348673374,1736707833721,-500.0,9.542e-05,2]
[348673375,1736707833731,-500.0,9.542e-05,2]
[348673376,1736707833742,-500.0,9.542e-05,2]
[348673377,1736707833753,-500.0,9.542e-05,2]
[348673378,1736707833763,-500.0,9.542e-05,2]
[348673379,1736707833772,-500.0,9.542e-05,2]
[348673380,1736707833782,-500.0,9.542e-05,2]
[348673381,1736707833792,-500.0,9.542e-05,2]
[348673382,1736707833801,-500.0,9.542e-05,2]
[348673383,1736707833811,-516.56305165,9.542e-05,2]
[348673384,1736707833821,-504.80572968,9.542e-05,2]
[348673385,1736707833830,-500.0,9.542e-05,2]
[348673386,1736707833843,-500.0,9.542e-05,2]
[348673387,1736707833853,-500.0,9.542e-05,2]
[348673388,1736707833863,-500.0,9.542e-05,2]
[348673389,1736707833873,-500.0,9.542e-05,2]
[348673390,1736707833883,-500.0,9.542e-05,2]
[348673391,1736707833892,-500.0,9.542e-05,2]
[348673392,1736707833902,-500.0,9.542e-05,2]
[348673393,1736707833912,-252.64277275,9.542e-05,2]
[348673394,1736707833921,-500.0,9.542e-05,2]
[348673395,1736707833931,-500.0,9.542e-05,2]
[348673396,1736707833940,-514.43118739,9.542e-05,2]
[348673397,1736707833951,-500.0,9.542e-05,2]
[348673398,1736707833961,-500.0,9.542e-05,2]
[348673399,1736707833970,-500.0,9.542e-05,2]
[348673400,1736707833980,-500.0,9.542e-05,2]
[348673401,1736707833989,-486.08834238,9.542e-05,2]
[348673402,1736707833999,-500.0,9.542e-05,2]
[348673403,1736707834009,-500.0,9.542e-05,2]
[348673404,1736707834018,-500.0,9.542e-05,2]
[348673405,1736707834028,-500.0,9.542e-05,2]
[348673406,1736707834037,-522.53979344,9.542e-05,2]
[348673407,1736707834047,-500.0,9.542e-05,2]
[348673408,1736707834056,-500.0,9.542e-05,2]
[348673409,1736707834066,-500.0,9.542e-05,2]
[348673410,1736707834076,-500.0,9.542e-05,2]
[348673411,1736707834086,-500.0,9.542e-05,2]
[348673412,1736707834096,-500.0,9.542e-05,2]
[348673413,1736707834105,-500.0,9.542e-05,2]
[348673414,1736707834115,-500.0,9.542e-05,2]
[348673415,1736707834124,-500.0,9.542e-05,2]
[348673416,1736707834134,-500.0,9.542e-05,2]
[348673417,1736707834144,-500.0,9.542e-05,2]
[348673418,1736707834154,-500.0,9.542e-05,2]
[348673419,1736707834164,-500.0,9.542e-05,2]
[348673420,1736707834174,-500.0,9.542e-05,2]
[348673421,1736707834183,-500.0,9.542e-05,2]
[348673422,1736707834193,-500.0,9.542e-05,2]
[348673423,1736707834202,-500.0,9.542e-05,2]
[348673424,1736707834211,-500.0,9.542e-05,2]
[348673425,1736707834222,-167.77471735,9.542e-05,2]
[348673426,1736707834232,-500.0,9.542e-05,2]
[348673427,1736707834241,-500.0,9.542e-05,2]
[348673428,1736707834251,-500.0,9.542e-05,2]
[348673429,1736707834261,-500.0,9.542e-05,2]
[348673430,1736707834274,-500.0,9.542e-05,2]
[348673431,1736707834285,-500.0,9.542e-05,2]
[348673432,1736707834298,-500.0,9.542e-05,2]
[348673433,1736707834310,-500.0,9.542e-05,2]
[348673434,1736707834323,-500.0,9.542e-05,2]
[348673435,1736707834334,-500.0,9.542e-05,2]
[348673436,1736707834345,-532.46,9.542e-05,2]
[348673437,1736707834359,-500.0,9.542e-05,2]
[348673438,1736707834369,-500.0,9.542e-05,2]
[348673439,1736707834381,-500.0,9.542e-05,2]
[348673440,1736707834393,-634.36,9.542e-05,2]
[348673441,1736707834404,-500.0,9.542e-05,2]